[Event "Late-Titled-Tuesday-Blitz-May-28-2024"]
[Site "Chess.com"]
[Date "2024.05.28"]
[Round "1"]
[White "andrew-blr"]
[Black "sleeping_in_the_fire"]
[Result "0-1"]
[WhiteElo "2628"]
[BlackElo "2392"]
[TimeControl "180+1"]
[EndTime "14:08:32 PDT"]
[Termination "sleeping_in_the_fire won on time"]

1. d4 {[%clk 0:02:59.4]} 1... Nf6 {[%clk 0:02:59.5]} 2. c4 {[%clk 0:02:58.9]}
2... e6 {[%clk 0:02:59.9]} 3. Nc3 {[%clk 0:02:59]} 3... Bb4 {[%clk 0:03:00.3]}
4. a3 {[%clk 0:02:59.3]} 4... Bxc3+ {[%clk 0:02:59.1]} 5. bxc3 {[%clk
0:03:00.2]} 5... c5 {[%clk 0:02:59.8]} 6. f3 {[%clk 0:03:00.7]} 6... Nc6 {[%clk
0:03:00.1]} 7. e4 {[%clk 0:03:00.7]} 7... d6 {[%clk 0:03:00.8]} 8. Ne2 {[%clk
0:02:56.3]} 8... O-O {[%clk 0:02:53.8]} 9. Be3 {[%clk 0:02:55.6]} 9... Qa5
{[%clk 0:02:49.3]} 10. Kf2 {[%clk 0:02:47.7]} 10... b6 {[%clk 0:02:37.1]} 11. g4
{[%clk 0:02:45.5]} 11... Ba6 {[%clk 0:02:36.4]} 12. g5 {[%clk 0:02:35.4]} 12...
Nd7 {[%clk 0:02:33.5]} 13. h4 {[%clk 0:02:32.4]} 13... Bxc4 {[%clk 0:02:26.7]}
14. h5 {[%clk 0:02:32.1]} 14... e5 {[%clk 0:01:45.3]} 15. d5 {[%clk 0:02:26]}
15... Ne7 {[%clk 0:01:44.7]} 16. Bh3 {[%clk 0:02:22.7]} 16... f5 {[%clk
0:01:38.9]} 17. gxf6 {[%clk 0:02:11.2]} 17... Nxf6 {[%clk 0:01:38.5]} 18. Ng3
{[%clk 0:02:03.8]} 18... Qxc3 {[%clk 0:01:27.5]} 19. Rc1 {[%clk 0:01:49.4]}
19... Qd3 {[%clk 0:01:27]} 20. Kg2 {[%clk 0:01:13.5]} 20... Qxe3 {[%clk
0:01:19.1]} 21. Rxc4 {[%clk 0:01:13.1]} 21... Kh8 {[%clk 0:01:08.9]} 22. a4
{[%clk 0:01:07.1]} 22... Qg5 {[%clk 0:01:06.4]} 23. Be6 {[%clk 0:01:03.1]} 23...
Ne8 {[%clk 0:00:54.3]} 24. h6 {[%clk 0:00:49.4]} 24... g6 {[%clk 0:00:53.1]} 25.
Qc1 {[%clk 0:00:39.7]} 25... Qxc1 {[%clk 0:00:48.1]} 26. Rhxc1 {[%clk
0:00:37.6]} 26... Nc7 {[%clk 0:00:48.7]} 27. Bg4 {[%clk 0:00:34.7]} 27... a6
{[%clk 0:00:46.6]} 28. R4c2 {[%clk 0:00:27]} 28... b5 {[%clk 0:00:46]} 29. Ra2
{[%clk 0:00:26.2]} 29... Ng8 {[%clk 0:00:38.9]} 30. Bd7 {[%clk 0:00:21.4]} 30...
Nxh6 {[%clk 0:00:36.7]} 31. Bc6 {[%clk 0:00:21.4]} 31... Rac8 {[%clk 0:00:24.3]}
32. axb5 {[%clk 0:00:21]} 32... axb5 {[%clk 0:00:24.2]} 33. Ra7 {[%clk
0:00:21.1]} 33... Rf7 {[%clk 0:00:24.8]} 34. Rh1 {[%clk 0:00:19]} 34... Ng8
{[%clk 0:00:21]} 35. Bxb5 {[%clk 0:00:19.1]} 35... Rcf8 {[%clk 0:00:21.5]} 36.
Be2 {[%clk 0:00:18]} 36... Ne8 {[%clk 0:00:19.9]} 37. Ra6 {[%clk 0:00:17.8]}
37... Ngf6 {[%clk 0:00:18.6]} 38. Nf1 {[%clk 0:00:17.1]} 38... Nh5 {[%clk
0:00:18.8]} 39. Kf2 {[%clk 0:00:15.4]} 39... Nf4 {[%clk 0:00:19]} 40. Bd1 {[%clk
0:00:15.8]} 40... Rf6 {[%clk 0:00:18.9]} 41. Ke3 {[%clk 0:00:15.8]} 41... Kg7
{[%clk 0:00:18.4]} 42. Ra7+ {[%clk 0:00:16.2]} 42... R8f7 {[%clk 0:00:18.8]} 43.
Ra8 {[%clk 0:00:16.3]} 43... Nc7 {[%clk 0:00:18.6]} 44. Rb8 {[%clk 0:00:15.7]}
44... Na6 {[%clk 0:00:18.8]} 45. Rb6 {[%clk 0:00:14.6]} 45... Nb4 {[%clk
0:00:19]} 46. Nd2 {[%clk 0:00:14.4]} 46... Ra7 {[%clk 0:00:16.3]} 47. Rb8 {[%clk
0:00:12.1]} 47... Ra3+ {[%clk 0:00:15.9]} 48. Kf2 {[%clk 0:00:12]} 48... Nbd3+
{[%clk 0:00:15.1]} 49. Kg3 {[%clk 0:00:12.3]} 49... Nb4 {[%clk 0:00:12.6]} 50.
Rb7+ {[%clk 0:00:12.3]} 50... Rf7 {[%clk 0:00:11.1]} 51. Rxf7+ {[%clk 0:00:12]}
51... Kxf7 {[%clk 0:00:11.6]} 52. Nc4 {[%clk 0:00:11.9]} 52... Ra6 {[%clk
0:00:10.2]} 53. Rxh7+ {[%clk 0:00:11.1]} 53... Kf6 {[%clk 0:00:10.8]} 54. Rd7
{[%clk 0:00:10.9]} 54... Nh5+ {[%clk 0:00:08.7]} 55. Kg4 {[%clk 0:00:09.3]}
55... Nd3 {[%clk 0:00:06.4]} 56. Be2 {[%clk 0:00:07.9]} 56... Nf2+ {[%clk
0:00:05.9]} 57. Kh4 {[%clk 0:00:07.5]} 57... Ra1 {[%clk 0:00:05.9]} 58. Rxd6+
{[%clk 0:00:07.4]} 58... Kg7 {[%clk 0:00:06.2]} 59. Rd7+ {[%clk 0:00:06.8]}
59... Kh6 {[%clk 0:00:06.5]} 0-1

[Event "Late-Titled-Tuesday-Blitz-May-28-2024"]
[Site "Chess.com"]
[Date "2024.05.28"]
[Round "1"]
[White "WoodlandMagic"]
[Black "ExchangeAB"]
[Result "0-1"]
[WhiteElo "2834"]
[BlackElo "2480"]
[TimeControl "180+1"]
[EndTime "14:08:44 PDT"]
[Termination "ExchangeAB won by resignation"]

1. d4 {[%clk 0:02:52.1]} 1... d5 {[%clk 0:02:59.8]} 2. Nc3 {[%clk 0:02:52.4]}
2... c6 {[%clk 0:03:00.7]} 3. Bf4 {[%clk 0:02:51.2]} 3... Nf6 {[%clk 0:02:59.9]}
4. e3 {[%clk 0:02:51.1]} 4... Bf5 {[%clk 0:02:56.4]} 5. f3 {[%clk 0:02:49.1]}
5... e6 {[%clk 0:02:55.1]} 6. g4 {[%clk 0:02:47.2]} 6... Bg6 {[%clk 0:02:55.5]}
7. h4 {[%clk 0:02:47.1]} 7... h5 {[%clk 0:02:55.8]} 8. g5 {[%clk 0:02:47]} 8...
Ng8 {[%clk 0:02:56]} 9. Bd3 {[%clk 0:02:45.8]} 9... Ne7 {[%clk 0:02:53.6]} 10.
Nge2 {[%clk 0:02:45.2]} 10... Nf5 {[%clk 0:02:48.2]} 11. Qd2 {[%clk 0:02:37.6]}
11... Bd6 {[%clk 0:02:46.9]} 12. O-O-O {[%clk 0:02:35.4]} 12... O-O {[%clk
0:02:42.8]} 13. Bxf5 {[%clk 0:02:24.2]} 13... Bxf5 {[%clk 0:02:24.1]} 14. e4
{[%clk 0:02:23.8]} 14... Bg6 {[%clk 0:02:21.3]} 15. Bxd6 {[%clk 0:02:22.1]}
15... Qxd6 {[%clk 0:02:20.8]} 16. Nf4 {[%clk 0:02:21]} 16... Nd7 {[%clk
0:02:15.4]} 17. a3 {[%clk 0:02:18.5]} 17... Rad8 {[%clk 0:02:07.3]} 18. Qe3
{[%clk 0:02:16.3]} 18... b5 {[%clk 0:02:01.4]} 19. Nce2 {[%clk 0:02:12.8]} 19...
a5 {[%clk 0:01:57.2]} 20. e5 {[%clk 0:01:54.6]} 20... Qe7 {[%clk 0:01:56.4]} 21.
Ng3 {[%clk 0:01:54.4]} 21... Nb6 {[%clk 0:01:50.7]} 22. Ngxh5 {[%clk 0:01:44.5]}
22... b4 {[%clk 0:01:39.2]} 23. Nf6+ {[%clk 0:01:32.5]} 23... gxf6 {[%clk
0:01:27.5]} 24. gxf6 {[%clk 0:01:31.4]} 24... Qa7 {[%clk 0:01:17.7]} 25. b3
{[%clk 0:00:56.5]} 25... a4 {[%clk 0:01:06.8]} 26. Rdg1 {[%clk 0:00:50.5]} 26...
axb3 {[%clk 0:01:01.2]} 27. Nxg6 {[%clk 0:00:49.3]} 27... Qxa3+ {[%clk
0:01:00.3]} 28. Kd1 {[%clk 0:00:42.3]} 28... bxc2+ {[%clk 0:00:58.2]} 29. Ke2
{[%clk 0:00:41.9]} 29... Qxe3+ {[%clk 0:00:47.1]} 30. Kxe3 {[%clk 0:00:41.9]}
30... fxg6 {[%clk 0:00:35.1]} 31. h5 {[%clk 0:00:13.2]} 31... c1=Q+ {[%clk
0:00:25]} 32. Rxc1 {[%clk 0:00:12.7]} 32... g5 {[%clk 0:00:25.3]} 33. Rcg1
{[%clk 0:00:12.5]} 33... Nc4+ {[%clk 0:00:24.2]} 34. Kd3 {[%clk 0:00:12.4]}
34... Rf7 {[%clk 0:00:22.2]} 35. Rxg5+ {[%clk 0:00:12.3]} 35... Kh8 {[%clk
0:00:21.5]} 36. h6 {[%clk 0:00:12.1]} 36... b3 {[%clk 0:00:20.8]} 37. Rg7 {[%clk
0:00:11.2]} 37... Rdf8 {[%clk 0:00:19.4]} 38. Rhg1 {[%clk 0:00:07.3]} 38... b2
{[%clk 0:00:19.3]} 39. Kc2 {[%clk 0:00:07.3]} 39... Ne3+ {[%clk 0:00:13.7]} 40.
Kxb2 {[%clk 0:00:06.8]} 40... Nf5 {[%clk 0:00:14.6]} 41. Kc3 {[%clk 0:00:04.1]}
41... Nxh6 {[%clk 0:00:11.9]} 42. R7g6 {[%clk 0:00:04.5]} 42... Rh7 {[%clk
0:00:11.1]} 43. Kd3 {[%clk 0:00:04.6]} 43... Nf5 {[%clk 0:00:11.4]} 44. Rc1
{[%clk 0:00:03.6]} 44... Rh6 {[%clk 0:00:10.4]} 45. Rxh6+ {[%clk 0:00:03.6]}
45... Nxh6 {[%clk 0:00:11.3]} 46. Rxc6 {[%clk 0:00:03.8]} 46... Re8 {[%clk
0:00:11.3]} 47. Rc7 {[%clk 0:00:03.7]} 47... Nf5 {[%clk 0:00:10.4]} 48. f4
{[%clk 0:00:04.1]} 48... Rf8 {[%clk 0:00:09.3]} 49. Kc3 {[%clk 0:00:04.1]} 49...
Re8 {[%clk 0:00:09.7]} 50. Rc6 {[%clk 0:00:03]} 50... Kh7 {[%clk 0:00:09.4]} 51.
Ra6 {[%clk 0:00:02.5]} 51... Kg6 {[%clk 0:00:09.8]} 52. Kd3 {[%clk 0:00:02.7]}
52... Kf7 {[%clk 0:00:09]} 53. Ra7+ {[%clk 0:00:02.7]} 53... Kg6 {[%clk
0:00:09.2]} 54. Ra6 {[%clk 0:00:02.3]} 54... Kf7 {[%clk 0:00:09.1]} 55. Ra1
{[%clk 0:00:01.6]} 55... Kg6 {[%clk 0:00:08.1]} 56. Ra7 {[%clk 0:00:02.2]} 56...
Rb8 {[%clk 0:00:07]} 57. Ra6 {[%clk 0:00:01.3]} 57... Rb3+ {[%clk 0:00:06.6]}
58. Kd2 {[%clk 0:00:01.8]} 58... Nxd4 {[%clk 0:00:04.8]} 59. Rd6 {[%clk
0:00:01.7]} 59... Rb8 {[%clk 0:00:04.5]} 60. Kd3 {[%clk 0:00:01.7]} 60... Nf5
{[%clk 0:00:04.4]} 61. Rxe6 {[%clk 0:00:02.1]} 61... Kf7 {[%clk 0:00:04.1]} 62.
Rc6 {[%clk 0:00:02.3]} 62... Rb3+ {[%clk 0:00:04.3]} 63. Kd2 {[%clk 0:00:02.7]}
63... Rb4 {[%clk 0:00:04.7]} 64. Rc7+ {[%clk 0:00:02.7]} 64... Ke6 {[%clk
0:00:04.8]} 65. Rc6+ {[%clk 0:00:03]} 65... Kf7 {[%clk 0:00:05.2]} 66. Rc7+
{[%clk 0:00:02.5]} 66... Kg6 {[%clk 0:00:05.4]} 67. Rc6 {[%clk 0:00:01.3]} 67...
Rxf4 {[%clk 0:00:05.5]} 68. Ke2 {[%clk 0:00:01]} 68... Re4+ {[%clk 0:00:05.6]}
69. Kf3 {[%clk 0:00:01]} 69... Rxe5 {[%clk 0:00:06.5]} 70. Kf4 {[%clk
0:00:00.8]} 70... Re4+ {[%clk 0:00:06.8]} 71. Kf3 {[%clk 0:00:01]} 71... Kf7
{[%clk 0:00:07.2]} 72. Kf2 {[%clk 0:00:01]} 72... Re6 {[%clk 0:00:07.1]} 73. Kf3
{[%clk 0:00:01.5]} 73... Rxc6 {[%clk 0:00:06.8]} 0-1

[Event "Late-Titled-Tuesday-Blitz-May-28-2024"]
[Site "Chess.com"]
[Date "2024.05.28"]
[Round "1"]
[White "dawid498"]
[Black "janhelmer03"]
[Result "1/2-1/2"]
[WhiteElo "2667"]
[BlackElo "2400"]
[TimeControl "180+1"]
[EndTime "14:08:52 PDT"]
[Termination "Game drawn by repetition"]

1. e4 {[%clk 0:03:00.9]} 1... c5 {[%clk 0:02:58.7]} 2. Nc3 {[%clk 0:03:00.3]}
2... Nc6 {[%clk 0:02:56.2]} 3. Bb5 {[%clk 0:03:00.1]} 3... g6 {[%clk 0:02:53]}
4. Bxc6 {[%clk 0:03:00.2]} 4... dxc6 {[%clk 0:02:52.6]} 5. d3 {[%clk 0:02:59.5]}
5... Bg7 {[%clk 0:02:51.6]} 6. Be3 {[%clk 0:02:58.6]} 6... b6 {[%clk 0:02:47.5]}
7. Qd2 {[%clk 0:02:59.2]} 7... e5 {[%clk 0:02:43.6]} 8. Nge2 {[%clk 0:02:59.4]}
8... Be6 {[%clk 0:02:41]} 9. b3 {[%clk 0:02:53.7]} 9... Qe7 {[%clk 0:02:40.8]}
10. O-O {[%clk 0:02:53.9]} 10... Nf6 {[%clk 0:02:37.3]} 11. Bh6 {[%clk
0:02:46.5]} 11... Bxh6 {[%clk 0:02:31]} 12. Qxh6 {[%clk 0:02:47.4]} 12... O-O-O
{[%clk 0:02:29.1]} 13. f3 {[%clk 0:02:22.4]} 13... Nd7 {[%clk 0:02:21]} 14. Qe3
{[%clk 0:02:20]} 14... g5 {[%clk 0:02:19.6]} 15. a3 {[%clk 0:02:15.1]} 15... Kb7
{[%clk 0:02:12.9]} 16. Rfb1 {[%clk 0:02:07.4]} 16... h5 {[%clk 0:02:09.9]} 17.
b4 {[%clk 0:02:06]} 17... f6 {[%clk 0:02:07]} 18. Kh1 {[%clk 0:02:03.9]} 18...
c4 {[%clk 0:01:29.3]} 19. d4 {[%clk 0:01:57.7]} 19... exd4 {[%clk 0:01:28.1]}
20. Nxd4 {[%clk 0:01:58.6]} 20... Ne5 {[%clk 0:01:27]} 21. a4 {[%clk 0:01:32.3]}
21... Rd7 {[%clk 0:01:10.8]} 22. a5 {[%clk 0:00:46.8]} 22... b5 {[%clk
0:01:10.6]} 23. a6+ {[%clk 0:00:46.6]} 23... Ka8 {[%clk 0:01:09.3]} 24. Nce2
{[%clk 0:00:45.5]} 24... Rhd8 {[%clk 0:01:06.5]} 25. c3 {[%clk 0:00:46]} 25...
Rd6 {[%clk 0:00:48.5]} 26. Rf1 {[%clk 0:00:42]} 26... Bc8 {[%clk 0:00:48.3]} 27.
Ng3 {[%clk 0:00:21.7]} 27... Qf7 {[%clk 0:00:23.6]} 28. Ngf5 {[%clk 0:00:21.9]}
28... Bxf5 {[%clk 0:00:23.3]} 29. exf5 {[%clk 0:00:22.8]} 29... Qd7 {[%clk
0:00:18.6]} 30. Rae1 {[%clk 0:00:22.4]} 30... h4 {[%clk 0:00:17.4]} 31. h3
{[%clk 0:00:22.4]} 31... Nd3 {[%clk 0:00:15]} 32. Rd1 {[%clk 0:00:19.9]} 32...
Re8 {[%clk 0:00:14.5]} 33. Ne6 {[%clk 0:00:18.5]} 33... Rdxe6 {[%clk 0:00:13.9]}
34. fxe6 {[%clk 0:00:19.4]} 34... Rxe6 {[%clk 0:00:14.5]} 35. Qd2 {[%clk
0:00:12.2]} 35... Qe7 {[%clk 0:00:14.7]} 36. Qc2 {[%clk 0:00:10.5]} 36... Re2
{[%clk 0:00:14.6]} 37. Rd2 {[%clk 0:00:10.8]} 37... Re1 {[%clk 0:00:13.2]} 38.
Rd1 {[%clk 0:00:06.2]} 38... Rxf1+ {[%clk 0:00:13.5]} 39. Rxf1 {[%clk
0:00:06.3]} 39... Qe3 {[%clk 0:00:13.6]} 40. Qd1 {[%clk 0:00:04.5]} 40... Kb8
{[%clk 0:00:10.3]} 41. Qc2 {[%clk 0:00:04.6]} 41... Kc7 {[%clk 0:00:10.2]} 42.
Qd1 {[%clk 0:00:04.9]} 42... Nf2+ {[%clk 0:00:09.9]} 43. Rxf2 {[%clk 0:00:05.1]}
43... Qxf2 {[%clk 0:00:10.8]} 44. Qb1 {[%clk 0:00:03.4]} 44... Kb6 {[%clk
0:00:07.8]} 45. Qh7 {[%clk 0:00:03.1]} 45... Qe1+ {[%clk 0:00:08.1]} 46. Kh2
{[%clk 0:00:03.3]} 46... Kxa6 {[%clk 0:00:07.8]} 47. Qd7 {[%clk 0:00:02.9]}
47... Kb6 {[%clk 0:00:06.4]} 48. Qd8+ {[%clk 0:00:02.9]} 48... Kb7 {[%clk
0:00:04.6]} 49. Qd7+ {[%clk 0:00:03.4]} 49... Kb6 {[%clk 0:00:02.3]} 50. Qd8+
{[%clk 0:00:03.9]} 50... Kb7 {[%clk 0:00:02.7]} 51. Qxf6 {[%clk 0:00:04.8]}
51... Qg3+ {[%clk 0:00:01.9]} 52. Kh1 {[%clk 0:00:04.8]} 52... Qf4 {[%clk
0:00:01.9]} 53. Qe7+ {[%clk 0:00:04.6]} 53... Qc7 {[%clk 0:00:02]} 54. Qxg5
{[%clk 0:00:04.3]} 54... a5 {[%clk 0:00:02.3]} 55. bxa5 {[%clk 0:00:04.2]} 55...
Qxa5 {[%clk 0:00:03.2]} 56. Qe7+ {[%clk 0:00:04.4]} 56... Ka6 {[%clk 0:00:02.8]}
57. Qf6 {[%clk 0:00:04.6]} 57... Qa1+ {[%clk 0:00:02.6]} 58. Kh2 {[%clk
0:00:04.6]} 58... Qe1 {[%clk 0:00:03.5]} 59. Qxc6+ {[%clk 0:00:04.6]} 59... Ka5
{[%clk 0:00:04.2]} 60. Qa8+ {[%clk 0:00:05]} 60... Kb6 {[%clk 0:00:04.2]} 61.
Qb8+ {[%clk 0:00:05.6]} 61... Kc5 {[%clk 0:00:03.2]} 62. Qc7+ {[%clk 0:00:06.1]}
62... Kd5 {[%clk 0:00:03.7]} 63. Qd7+ {[%clk 0:00:06.7]} 63... Kc5 {[%clk
0:00:04.3]} 64. Qc7+ {[%clk 0:00:06.6]} 64... Kd5 {[%clk 0:00:04.9]} 65. Qb7+
{[%clk 0:00:07.1]} 65... Kc5 {[%clk 0:00:05]} 66. Qa7+ {[%clk 0:00:07.5]} 66...
Kc6 {[%clk 0:00:04.3]} 67. Qa6+ {[%clk 0:00:07.3]} 67... Kc5 {[%clk 0:00:04.7]}
68. Qc8+ {[%clk 0:00:08]} 68... Kb6 {[%clk 0:00:04.8]} 69. Qd8+ {[%clk
0:00:08.4]} 69... Ka6 {[%clk 0:00:04.5]} 70. Qd6+ {[%clk 0:00:08.7]} 70... Ka5
{[%clk 0:00:03.9]} 71. Qb4+ {[%clk 0:00:08.1]} 71... Kb6 {[%clk 0:00:03.7]} 72.
Qd6+ {[%clk 0:00:08.4]} 72... Ka5 {[%clk 0:00:04.1]} 73. Qf6 {[%clk 0:00:07.7]}
73... Qg3+ {[%clk 0:00:01.5]} 74. Kg1 {[%clk 0:00:07.5]} 74... Qe1+ {[%clk
0:00:01.6]} 75. Kh2 {[%clk 0:00:08.1]} 75... Qg3+ {[%clk 0:00:01.9]} 76. Kh1
{[%clk 0:00:08.7]} 76... Qe1+ {[%clk 0:00:02.8]} 77. Kh2 {[%clk 0:00:09.3]}
1/2-1/2

[Event "Late-Titled-Tuesday-Blitz-May-28-2024"]
[Site "Chess.com"]
[Date "2024.05.28"]
[Round "1"]
[White "JaackCamel"]
[Black "Sondremelaa"]
[Result "0-1"]
[WhiteElo "2234"]
[BlackElo "2576"]
[TimeControl "180+1"]
[EndTime "14:08:55 PDT"]
[Termination "Sondremelaa won on time"]

1. d4 {[%clk 0:02:59]} 1... d5 {[%clk 0:02:56.4]} 2. c4 {[%clk 0:02:57.4]} 2...
c6 {[%clk 0:02:56.6]} 3. cxd5 {[%clk 0:02:56.9]} 3... cxd5 {[%clk 0:02:55.6]} 4.
Bf4 {[%clk 0:02:56.7]} 4... Nc6 {[%clk 0:02:52.4]} 5. e3 {[%clk 0:02:56.4]} 5...
Nf6 {[%clk 0:02:51.7]} 6. Nc3 {[%clk 0:02:55.8]} 6... a6 {[%clk 0:02:51.7]} 7.
Bd3 {[%clk 0:02:55.1]} 7... Bg4 {[%clk 0:02:51.7]} 8. Nf3 {[%clk 0:02:51.1]}
8... e6 {[%clk 0:02:46.7]} 9. O-O {[%clk 0:02:50.4]} 9... Bd6 {[%clk 0:02:45.6]}
10. Bxd6 {[%clk 0:02:49.9]} 10... Qxd6 {[%clk 0:02:46.5]} 11. h3 {[%clk
0:02:49.9]} 11... Bh5 {[%clk 0:02:42.3]} 12. Rc1 {[%clk 0:02:49.3]} 12... O-O
{[%clk 0:02:39.4]} 13. Na4 {[%clk 0:02:48.6]} 13... Rac8 {[%clk 0:02:36.9]} 14.
Nc5 {[%clk 0:02:47.8]} 14... Qe7 {[%clk 0:02:05.6]} 15. Be2 {[%clk 0:02:45.2]}
15... Rc7 {[%clk 0:01:46.5]} 16. Nd3 {[%clk 0:02:42.2]} 16... Rfc8 {[%clk
0:01:44.8]} 17. Nfe5 {[%clk 0:02:37.9]} 17... Bxe2 {[%clk 0:01:44.8]} 18. Qxe2
{[%clk 0:02:36.6]} 18... Ne4 {[%clk 0:01:45.2]} 19. Nxc6 {[%clk 0:02:35.2]}
19... Rxc6 {[%clk 0:01:45.5]} 20. Rxc6 {[%clk 0:02:34.5]} 20... Rxc6 {[%clk
0:01:46.4]} 21. Ne5 {[%clk 0:02:33.7]} 21... Rc7 {[%clk 0:01:40.8]} 22. Rd1
{[%clk 0:02:27.6]} 22... f6 {[%clk 0:01:40.1]} 23. Nd3 {[%clk 0:02:27]} 23...
Qd6 {[%clk 0:01:33.1]} 24. Qe1 {[%clk 0:02:10.9]} 24... Rc2 {[%clk 0:01:25.5]}
25. Rc1 {[%clk 0:02:05.5]} 25... Qc7 {[%clk 0:01:20.3]} 26. Qd1 {[%clk
0:01:56.6]} 26... Rxc1 {[%clk 0:01:18.1]} 27. Qxc1 {[%clk 0:01:56.5]} 27...
Qxc1+ {[%clk 0:01:12.5]} 28. Nxc1 {[%clk 0:01:56.2]} 28... Kf7 {[%clk
0:01:13.2]} 29. Kf1 {[%clk 0:01:53.2]} 29... Ke7 {[%clk 0:01:13.5]} 30. Ke2
{[%clk 0:01:52.9]} 30... Kd6 {[%clk 0:01:14]} 31. Nb3 {[%clk 0:01:52.5]} 31...
b6 {[%clk 0:01:13.2]} 32. Nd2 {[%clk 0:01:52.3]} 32... Ng5 {[%clk 0:01:11.5]}
33. Kd3 {[%clk 0:01:45.6]} 33... e5 {[%clk 0:01:11.6]} 34. Nb3 {[%clk
0:01:36.3]} 34... a5 {[%clk 0:01:09.4]} 35. Nd2 {[%clk 0:01:32.8]} 35... Ne6
{[%clk 0:01:08.6]} 36. Nb3 {[%clk 0:01:30.7]} 36... Kc6 {[%clk 0:01:08.5]} 37.
Nd2 {[%clk 0:01:30]} 37... Kb5 {[%clk 0:01:08]} 38. Nb3 {[%clk 0:01:28.7]} 38...
a4 {[%clk 0:01:07.7]} 39. Nd2 {[%clk 0:01:28.3]} 39... Kb4 {[%clk 0:01:06.5]}
40. a3+ {[%clk 0:01:18.7]} 40... Kb5 {[%clk 0:01:06.5]} 41. g3 {[%clk
0:01:05.5]} 41... h5 {[%clk 0:01:01.5]} 42. h4 {[%clk 0:01:05.5]} 42... e4+
{[%clk 0:00:46.6]} 43. Kc2 {[%clk 0:00:49.4]} 43... g5 {[%clk 0:00:46.8]} 44.
Nb1 {[%clk 0:00:47.3]} 44... Ng7 {[%clk 0:00:33.5]} 45. Nc3+ {[%clk 0:00:47]}
45... Kc6 {[%clk 0:00:34.1]} 46. Nxa4 {[%clk 0:00:45.6]} 46... gxh4 {[%clk
0:00:33.4]} 47. gxh4 {[%clk 0:00:45.3]} 47... Nf5 {[%clk 0:00:34.1]} 48. Kd2
{[%clk 0:00:39.3]} 48... Nxh4 {[%clk 0:00:34.2]} 49. Ke2 {[%clk 0:00:39.5]}
49... Nf3 {[%clk 0:00:31.9]} 50. Kf1 {[%clk 0:00:39.5]} 50... h4 {[%clk
0:00:31.2]} 51. Kg2 {[%clk 0:00:39.5]} 51... Kb5 {[%clk 0:00:20.4]} 52. Nc3+
{[%clk 0:00:39.6]} 52... Kc4 {[%clk 0:00:21]} 53. a4 {[%clk 0:00:34.7]} 53...
Ng5 {[%clk 0:00:19.3]} 54. Nb5 {[%clk 0:00:31.2]} 54... Kb3 {[%clk 0:00:17.7]}
55. Nc3 {[%clk 0:00:29.5]} 55... Kc4 {[%clk 0:00:18.2]} 56. Kh2 {[%clk 0:00:27]}
56... f5 {[%clk 0:00:16.6]} 57. Kg2 {[%clk 0:00:26.8]} 57... Ne6 {[%clk
0:00:16.2]} 58. Kh3 {[%clk 0:00:26.6]} 58... Nc7 {[%clk 0:00:15.9]} 59. Kxh4
{[%clk 0:00:26.3]} 59... Kb3 {[%clk 0:00:16.5]} 60. Kg5 {[%clk 0:00:24.1]} 60...
Kxb2 {[%clk 0:00:17]} 61. Nb5 {[%clk 0:00:23.7]} 61... Na6 {[%clk 0:00:16]} 62.
Kxf5 {[%clk 0:00:22.7]} 62... Kb3 {[%clk 0:00:16.7]} 63. Ke5 {[%clk 0:00:18.6]}
63... Kxa4 {[%clk 0:00:17.1]} 64. Nd6 {[%clk 0:00:18.9]} 64... Nc7 {[%clk
0:00:15.4]} 65. Nb7 {[%clk 0:00:16.3]} 65... b5 {[%clk 0:00:15]} 66. Kd6 {[%clk
0:00:16.7]} 66... Na6 {[%clk 0:00:14.1]} 67. Kxd5 {[%clk 0:00:13.1]} 67... b4
{[%clk 0:00:14.6]} 68. Nd6 {[%clk 0:00:08.7]} 68... b3 {[%clk 0:00:13]} 69. Nc4
{[%clk 0:00:08.9]} 69... Kb4 {[%clk 0:00:13.6]} 70. Nb2 {[%clk 0:00:06.9]} 70...
Kc3 {[%clk 0:00:13.9]} 71. Na4+ {[%clk 0:00:06.3]} 71... Kd3 {[%clk 0:00:14.4]}
72. Ke5 {[%clk 0:00:03.6]} 72... Nb4 {[%clk 0:00:11]} 73. Nc5+ {[%clk
0:00:02.8]} 73... Kc3 {[%clk 0:00:10.5]} 74. Kxe4 {[%clk 0:00:01.8]} 74... Kc4
{[%clk 0:00:06.8]} 75. Na4 {[%clk 0:00:01.5]} 75... Nd3 {[%clk 0:00:06.6]} 0-1